Cogmind - Beta 17.1 @@@ ROGUE MODE // 2026.09.06 @ 20:06:39 Player: H3-MLN Result: Destroyed by Chaos Wyrm with Ragnarok Missile Launcher Performance ------------- Evolutions (2) 1000 Regions Visited (7) 1400 Robots Destroyed (156) 780 Value Destroyed (4161) 4161 Prototype IDs (35) 700 Alien Tech Used (0) 0 Bonus (7981) 7981 TOTAL SCORE: 16022 Bonus ------- High Alert Combat Kills 520 Follower Combat Kills 1267 Prayed to X0-1V1 5000 Major X0-1V1 Interference 900 Registered with UFD 300 Friendly Fire -6 Cogmind --------- Core Integrity 0/340 Matter 280/300 Energy 798/800 System Corruption 0% Temperature Cool (0) Movement Treading (232) Ox1 Location -8/Scraptown Parts ------- > --- POWER (1) -------- Hybrid Deuterium Engine (fused) > --- PROPULSION (4) --- Advanced Treads (fused) Advanced Treads (fused) Medium Treads (fused) Improved Medium Treads (fused) > --- UTILITY (3) ------ Huge Storage Unit Makeshift Weapon Shielding (fused) Self-contained Transmogrifier > --- WEAPON (4) ------- Improved Lightning Gun (fused) Improved Lightning Gun (fused) Proton Cannon (fused) Compact Ion Cannon > --- INVENTORY (25) --- Armored Treads Armored Treads Combat Airjet Combat Airjet Large Storage Unit Matter Compressor (250) Surveybot 17 Chip Tactical Coordination Suite Hardened Medium Armor Plating Improved Light Armor Plating Authchip [Device] A0-MCA's Component Scanner Sensor Drone Bay (20/20) Autogun Enhanced Autogun Advanced EMP Blaster Rocket Launcher Mini Grenade Launcher Mini Grenade Launcher Datajack CPS Tube (2) CPS Tube (2) CPS Tube (1) Scimitar of Distortion DRS Beacon (Ready) Peak State ------------ > --- POWER ------------ Cold Fusion Reactor > --- PROPULSION ------- Improved Titanium Leg Improved Titanium Leg Improved VSS Leg Combat Airjet > --- UTILITY ---------- Advanced Heat Sink Huge Storage Unit Self-contained Transmogrifier > --- WEAPON ----------- Heavy Flak Cannon Heavy Flak Cannon Heavy Flak Cannon Antimatter Cannon > --- INVENTORY -------- Light Treads Combat Airjet Large Storage Unit Medium Matter Pod Tactical Coordination Suite Hardened Medium Armor Plating Improved Light Armor Plating Authchip [R/Combat] Authchip [R/Combat] Authchip [Device] Drone Bay Sensor Drone Bay Mobile Assembly Unit Compact Ion Cannon Enhanced Autogun Gauss Rifle Advanced EMP Blaster Rocket Launcher Mini Grenade Launcher Improved Grenade Launcher Datajack Scimitar of Distortion [Rating: 69] Favorites ----------- Power Hybrid Deuterium Engine Engine Hybrid Deuterium Engine Power Core Neutrino Core Reactor Cold Fusion Reactor Propulsion Medium Treads Treads Medium Treads Leg Improved VSS Leg Hover Unit Combat Airjet Utility Self-contained Transmogrifier Device Self-contained Transmogrifier Storage Huge Storage Unit Processor Advanced Melee Analysis Suite Protection Improved Medium Armor Plating Weapon Improved Lightning Gun Energy Gun Improved Lightning Gun Energy Cannon Compact Ion Cannon Ballistic Gun Autogun Ballistic Cannon Mass Driver Launcher Mini Grenade Launcher Special Weapon Remote Datajack Impact Weapon Makeshift Hammer Slashing Weapon Chainsword Special Melee Weapon Datajack Build | -11 -10 -9 -9 -8 -8 -8 -8 ------- Run | Yrd Mat Mat Min Mat Sto Rec Scr Slots Evolved 4 | . . 2 . 2 . . . Power . | . . . . . . . . Propulsion 2 | . . 1 . 1 . . . Utility . | . . . . . . . . Weapon 2 | . . 1 . 1 . . . Parts Attached 77 | 7 2 25 6 15 20 . 2 Power 7 | 1 1 4 . . 1 . . Engine 7 | 1 1 4 . . 1 . . Core . | . . . . . . . . Reactor . | . . . . . . . . Propulsion 23 | 2 . 8 1 3 9 . . Treads 16 | . . 7 1 . 8 . . Leg 6 | 2 . 1 . 2 1 . . Wheel . | . . . . . . . . Hover 1 | . . . . 1 . . . Flight . | . . . . . . . . Utility 14 | 2 1 2 3 3 3 . . Device 7 | 1 1 . 2 1 2 . . Storage 4 | 1 . 2 . . 1 . . Processor . | . . . . . . . . Hackware . | . . . . . . . . Protection 3 | . . . 1 2 . . . Artifact . | . . . . . . . . Weapon 33 | 2 . 11 2 9 7 . 2 Energy Gun 11 | 1 . 4 . 4 2 . . Energy Cannon 2 | . . 1 . . 1 . . Ballistic Gun 12 | 1 . 6 1 2 2 . . Ballistic Cannon 1 | . . . . 1 . . . Launcher 3 | . . . 1 . 2 . . Special Weapon 1 | . . . . . . . 1 Impact Weapon 1 | . . . . 1 . . . Slashing Weapon 1 | . . . . 1 . . . Piercing Weapon . | . . . . . . . . Special Melee Weapon 1 | . . . . . . . 1 Unidentified Prototypes 14 | . 1 5 1 5 2 . . Parts Lost 7 | . . . 1 3 3 . . Power 1 | . . . . . 1 . . Propulsion . | . . . . . . . . Utility 1 | . . . . 1 . . . Weapon 5 | . . . 1 2 2 . . Highest Loss Streak 3 | . . . 1 3 1 . . To Critical Strikes . | . . . . . . . . Average Backups 19 | 2 5 13 21 21 21 22 22 Power . | . . . . . . . . Propulsion 2 | 1 2 1 3 2 2 4 3 Utility 9 | . . 6 10 11 11 11 9 Weapon 5 | . 1 4 7 6 6 6 5 Tool/Special . | . . . . . . . . Unused Backups 41 | . . 8 2 8 4 . 19 Power 1 | . . . . . 1 . . Propulsion 6 | . . . . 2 1 . 3 Utility 20 | . . 4 1 2 2 . 11 Weapon 12 | . . 4 1 4 . . 3 Tool/Special 2 | . . . . . . . 2 Average Slot Usage (%) 96 | . 100 99 99 90 94 100 97 Engine 7 | . 14 11 10 2 2 8 8 Core 1 | . . . . 5 3 . . Treads 22 | . . 25 30 12 8 33 31 Leg 7 | . 28 5 . 8 18 . 1 Hover 1 | . . 2 . 3 1 . . Device 11 | . 15 12 10 9 12 8 10 Storage 8 | . 12 9 10 8 8 8 7 Protection 4 | . . . 9 5 3 8 4 Energy Gun 8 | . 14 7 1 10 5 16 12 Energy Cannon 2 | . . 2 . . . . 6 Ballistic Gun 6 | . 14 19 8 7 2 . . Ballistic Cannon 7 | . . . . 8 22 16 4 Special Weapon 3 | . . 2 20 5 . . . Slashing Weapon 1 | . . . . . . . 4 Peak Build Rating 69 | 7 27 34 48 63 69 65 66 Average Rating 51 | 5 9 28 42 57 63 64 63 On Entrance 38 | . 7 27 34 47 63 63 65 Avg Prop Armor Cover (%) 4 | . . 5 . 1 3 . 5 Naked Turns . | . . . . . . . . Heaviest Build 129 | 13 13 98 104 117 129 121 121 Greatest Support 108 | 20 20 63 70 73 80 98 108 Greatest Overweight (x) 5 | . . 2 1 3 5 1 1 Average Overweight (x) . | . . . 1 1 1 1 . Largest Inventory Capacity 25 | 8 8 25 25 25 25 25 25 Average Capacity 22 | 7 7 16 25 25 25 25 24 Most Carried 25 | 4 6 25 25 25 25 25 25 Average Carried 21 | 2 5 14 24 24 24 25 23 Final Capacity 25 | 8 5 25 25 25 25 25 25 Final Carried 25 | 4 5 25 25 25 25 25 25 Transmogrified Parts 78 | . . 7 12 13 21 3 22 Integrity Recovered 1116 | . . 155 136 132 574 4 115 Class Distribution -------------------- 40% | Gunner 39% | Tank 13% | Mutant 4% | Gladiator Dominant Class ---------------- Mutant | -10/Materials Gunner | -9/Materials Tank | -9/Mines Tank | -8/Materials Gunner | -8/Storage Tank | -8/Recycling Tank | -8/Scraptown Resources | -11 -10 -9 -9 -8 -8 -8 -8 ----------- Run | Yrd Mat Mat Min Mat Sto Rec Scr Matter Collected 3769 | 248 37 1173 147 459 1395 . 310 Remotely . | . . . . . . . . Salvage Created 4744 | 109 37 1252 81 1479 1749 . 37 Parts 291 | 7 6 95 16 63 104 . . Haulers Intercepted 14 | . . 4 . 4 6 . . Recyclers Shooed 5 | . . 1 . 2 2 . . Parts Field Recycled . | . . . . . . . . Retrieved Matter . | . . . . . . . . Parts Self-Destructed . | . . . . . . . . Prevented . | . . . . . . . . Parts Restored . | . . . . . . . . Kills | -11 -10 -9 -9 -8 -8 -8 -8 ------- Run | Yrd Mat Mat Min Mat Sto Rec Scr Combat Hostiles Destroyed 112 | . 3 27 8 25 48 . 1 Guns 54 | . 3 24 2 21 4 . . Cannons 25 | . . 3 2 . 19 . 1 AOE 29 | . . . 4 . 25 . . Classes Destroyed 18 | 2 1 8 2 2 2 . 1 Worker 6 | . . 4 . 1 1 . . Builder 4 | . . 3 . . 1 . . Tunneler 1 | 1 . . . . . . . Hauler 14 | . . 4 . 4 6 . . Recycler 10 | 1 . . 1 3 5 . . Mechanic 3 | . . . . 1 2 . . Operator 4 | . . . . 1 3 . . Watcher 4 | . . 2 . . 2 . . Swarmer 35 | . 3 10 4 10 8 . . Grunt 45 | . . 9 . 12 24 . . Brawler 6 | . . 1 . . 5 . . Duelist 1 | . . 1 . . . . . Protector 3 | . . . . . 3 . . Sentry 16 | . . 6 . 3 7 . . Demolisher 2 | . . . 2 . . . . Hunter 1 | . . . . . 1 . . Scrapper 1 | . . . . . . . 1 Assembled 2 | . . . 2 . . . . Best Kill Streak 17 | 2 2 7 5 9 17 . 1 Combat Bots Only 12 | . 2 7 4 8 12 . 1 Max Kills in Single Turn 5 | 1 1 2 4 2 5 . 1 Gunslinging 1 | . . 1 1 1 . . . Exploded 3 | . . . 3 . 3 . . Melee . | . . . . . . . . Uniques/NPCs Destroyed 1 | . . . . . . . 1 Triborg (-8/Scraptown) Combat | -11 -10 -9 -9 -8 -8 -8 -8 -------- Run | Yrd Mat Mat Min Mat Sto Rec Scr Hostile Shots Fired 353 | . 10 63 15 114 150 . 1 Missed 87 | . . 10 3 33 41 . . Hits 266 | . 10 53 12 81 109 . 1 Melee 2 | . . 1 . . 1 . . Projectile 264 | . 10 52 12 81 108 . 1 AOE 4 | . . . 4 . . . . Critical Strikes 14 | . . 3 . 8 3 . . Part Disruptions 1 | . . . 1 . . . . Damage Taken 4325 | . 86 677 252 1156 1901 . 253 Core 566 | . 24 105 34 87 188 . 128 Absorbed by Shields . | . . . . . . . . Redirected to Shielding 155 | . . . . 138 . . 17 Core Remaining (%) 88 | 100 76 . 89 . . . . Volleys Fired 258 | 6 9 58 8 78 89 . 10 Largest 4 | 2 2 3 3 4 4 . 3 Hottest 300 | 70 70 223 300 153 214 . 195 Shots Fired 638 | 12 18 167 14 187 223 . 17 Gun 405 | 12 18 147 2 157 63 . 6 Cannon 202 | . . 16 . 30 146 . 10 Launcher 16 | . . . 2 . 14 . . Special 15 | . . 4 10 . . . 1 Kinetic 365 | 6 9 117 1 72 160 . . Thermal 126 | 6 9 50 9 . 46 . 6 Explosive 16 | . . . 2 . 14 . . Electromagnetic 128 | . . . . 115 3 . 10 Robot Hit Streak 14 | 5 2 14 14 10 11 . 6 Robot Miss Streak 9 | 2 3 7 1 9 5 . 6 Penetration Max 1 | . . . . 1 . . . Secondary Targets 8 | . . 3 1 4 . . . Max Gunslinging Chain 1 | . . 1 1 1 . . . Shots Hit Robots 378 | 7 6 101 10 110 135 . 9 Core Hits 249 | 3 3 51 11 50 128 . 3 Critical Kills . | . . . . . . . . Critical Parts Destroyed 2 | . 1 . . 1 . . . Critical Strikes 9 | . 1 2 1 4 1 . . Burn 4 | . . 2 1 . 1 . . Destroy 1 | . 1 . . . . . . Blast 1 | . . . . 1 . . . Corrupt 2 | . . . . 2 . . . Smash 1 | . . . . 1 . . . Melee Attacks 5 | . . . . 3 . . 2 Impact 3 | . . . . 3 . . . Slashing . | . . . . . . . . Piercing . | . . . . . . . . Sneak Attacks 2 | . . . . . . . 2 Combat Hostiles . | . . . . . . . . Follow-up Attacks . | . . . . . . . . Damage Inflicted 11689 | 89 74 1862 409 2231 6861 . 163 Guns 4368 | 89 74 1531 33 1827 792 . 22 Cannons 2932 | . . 146 . 172 2473 . 141 Explosions 4088 | . . 113 313 91 3571 . . Melee 81 | . . . . 81 . . . Ramming 110 | . . 25 . 60 25 . . Kinetic 4449 | 39 48 1039 16 629 2678 . . Thermal 1691 | 50 26 798 80 91 561 . 85 Explosive 3884 | . . . 313 . 3571 . . Electromagnetic 1474 | . . . . 1370 26 . 78 Impact 81 | . . . . 81 . . . Slashing . | . . . . . . . . Piercing . | . . . . . . . . Highest Corruption . | . . . . . . . . Average Corruption . | . . . . . . . . Corruption Purged . | . . . . . . . . Corruption Blocked . | . . . . . . . . Overload Shots . | . . . . . . . . Overflow Damage 116 | . . . . 50 66 . . Projectiles 30 | . . . . 9 21 . . Explosions 45 | . . . . . 45 . . Melee 41 | . . . . 41 . . . Knockbacks 24 | . . . . 6 18 . . Impact 2 | . . . . 2 . . . Kinetic 18 | . . . . 3 15 . . Secondary 4 | . . . . 1 3 . . Self-Inflicted Damage 299 | . . 74 . 38 187 . . Shots 9 | . . 1 . 1 7 . . Rammed 6 | . . 5 . . 1 . . Targets Rammed 12 | . . 5 . 3 4 . . Kicked 5 | . . . . 2 3 . . Crushed 1 | . . . . 1 . . . Highest Temperature 442 | 36 27 363 442 382 381 . 222 Average Temperature 115 | 16 10 99 201 130 115 . 88 Received Heat Transfer 1702 | . . 189 40 657 816 . . Effects 13 | . . 3 1 6 3 . . Energy Bleed 3 | . . . . 1 2 . . Interference 8 | . . 3 . 5 . . . Short Circuit 1 | . . . . . 1 . . Damage (minor) 1 | . . . 1 . . . . Siege Activations . | . . . . . . . . Martial Activations 1 | . . . . 1 . . . Total Turns 29 | . . . . 29 . . . Longest Duration 29 | . . . . 29 . . . Shielding Activations . | . . . . . . . . Robots Disrupted 1 | . . . . 1 . . . Combat Hostiles 1 | . . . . 1 . . . Robots Corrupted 4 | . . . . 4 . . . Combat Hostiles 4 | . . . . 4 . . . Parts Fried 11 | . . . . 11 . . . Impact Corruptions 2 | . . . . 2 . . . Robots Melted . | . . . . . . . . Combat Hostiles . | . . . . . . . . Parts Melted 6 | . . 6 . . . . . Heat Transferred 3902 | 148 74 1665 597 150 1169 . 99 Parts Sabotaged . | . . . . . . . . Parts Stolen . | . . . . . . . . Parts Stripped . | . . . . . . . . Power Chain Reactions 1 | . . . . 1 . . . Alert | -11 -10 -9 -9 -8 -8 -8 -8 ------- Run | Yrd Mat Mat Min Mat Sto Rec Scr Maximum Alert Level 3 | . . 1 . 3 3 2 . Low Security (%) 42 | 100 100 41 100 20 12 . . Level 1 27 | . . 58 . 22 22 60 . Level 2 14 | . . . . 29 28 39 . Level 3 15 | . . . . 27 36 . . Level 4 . | . . . . . . . . Level 5 . | . . . . . . . . High Security . | . . . . . . . . Max Security . | . . . . . . . . Peak Influence 1058 | 5 76 367 123 849 1058 415 . Initial 405 | . . 10 123 1 276 405 . Average 338 | 1 47 207 30 484 618 395 . Influence Increases 4096 | 10 126 821 157 1220 1732 30 . Destroy 0b10 Robot/C 2420 | . 60 540 120 720 980 . . Destroy 0b10 Robot/NC 245 | 10 . 65 5 50 115 . . Destroy Leader 496 | . 10 122 20 138 206 . . Allied During Kill 32 | . . . . 20 12 . . Successful Hack 54 | . 11 14 . 8 21 . . Select Force Hacks 30 | . . . . . . 30 . Disable Machine 195 | . . 45 . 60 90 . . Anti-Garrison Action 150 | . . . . 150 . . . Destroy Structure 206 | . . 35 12 29 130 . . Partial Spotted 15 | . . . . . 15 . . Lose Combat Pursuer 105 | . 45 . . 45 15 . . Miscellaneous 148 | . . . . . 148 . . Influence Decreases 4096 | 10 100 530 469 571 1346 695 375 Entered New Map 1602 | . . 16 194 4 378 635 375 Time Decay 1924 | 10 100 514 275 367 598 60 . Lost Part 60 | . . . . 30 30 . . Lost Ally 60 | . . . . 20 40 . . Purge Threat 450 | . . . . 150 300 . . Squads Dispatched 22 | . . 1 . 9 12 . . Investigation 5 | . . 1 . 2 2 . . Extermination . | . . . . . . . . Reinforcement 2 | . . . . 2 . . . Assault 9 | . . . . 3 6 . . Garrison 6 | . . . . 2 4 . . Intercept . | . . . . . . . . Searches Triggered . | . . . . . . . . Construction Impeded . | . . . . . . . . Haulers Reinforced . | . . . . . . . . Active Scanning Responses . | . . . . . . . . Cargo Convoy Interrupts . | . . . . . . . . Stealth | -11 -10 -9 -9 -8 -8 -8 -8 --------- Run | Yrd Mat Mat Min Mat Sto Rec Scr Distress Signals 6 | . . 2 . 2 2 . . Communications Jammed . | . . . . . . . . Distress Signals . | . . . . . . . . Times Spotted 174 | . 8 39 7 39 70 . 11 Peak Tracking Total 9 | . 3 4 4 7 9 . 8 Tactical Retreats 6 | . 2 . . 2 1 . 1 Traps | -11 -10 -9 -9 -8 -8 -8 -8 ------- Run | Yrd Mat Mat Min Mat Sto Rec Scr Traps Triggered 2 | . . 1 . 1 . . . Indirectly . | . . . . . . . . Trap Hack Attempts . | . . . . . . . . Triggered . | . . . . . . . . Disarmed . | . . . . . . . . Reprogrammed . | . . . . . . . . Reused . | . . . . . . . . Traps Extracted . | . . . . . . . . Installed . | . . . . . . . . Triggered . | . . . . . . . . Machines | -11 -10 -9 -9 -8 -8 -8 -8 ---------- Run | Yrd Mat Mat Min Mat Sto Rec Scr Machines Disabled 17 | . . 3 . 5 6 . 3 Max in Single Turn 3 | . . 3 . 1 2 . . Garrison Access 2 | . . . . 1 1 . . Machines Repaired . | . . . . . . . . Machines Dismantled . | . . . . . . . . Machines Sabotaged . | . . . . . . . . Overloaded Fab Kills . | . . . . . . . . Hacking | -11 -10 -9 -9 -8 -8 -8 -8 --------- Run | Yrd Mat Mat Min Mat Sto Rec Scr Machines Accessed 27 | . 2 8 1 2 11 1 2 Terminals 20 | . 2 7 . 1 10 . . Fabricators . | . . . . . . . . Repair Stations 1 | . . . . 1 . . . Recycling Units 1 | . . . . . . 1 . Scanalyzers 1 | . . 1 . . . . . Garrison Access 1 | . . . . . 1 . . Total Hacks 85 | . 4 28 1 4 36 2 10 Successful 53 | . 2 16 1 3 20 1 10 Failed 31 | . 1 12 . 1 16 1 . Catastrophic 4 | . . 1 . . 3 . . Database Lockouts 1 | . 1 . . . . . . Manual 50 | . 3 20 . 4 21 2 . Terminals 67 | . 4 26 . 2 35 . . Fabricators . | . . . . . . . . Repair Stations 2 | . . . . 2 . . . Recycling Units 2 | . . . . . . 2 . Scanalyzers 2 | . . 2 . . . . . Garrison Access 1 | . . . . . 1 . . Terminal Hacks 31 | . 2 6 1 2 10 . 10 Record 4 | . . . . . . . 4 Part Schematic 1 | . . 1 . . . . . Robot Schematic 1 | . . 1 . . . . . Robot Analysis 8 | . 1 . . . 1 . 6 Prototype ID Bank 3 | . . 2 . . 1 . . Open Door 5 | . . . 1 . 4 . . Branch Access Points 2 | . . 1 . 1 . . . Terminal Index 1 | . . 1 . . . . . Unreport Threat 3 | . . . . 1 2 . . Hauler Manifests 2 | . 1 . . . 1 . . Zone Layout 1 | . . . . . 1 . . Fabricator Hacks . | . . . . . . . . Repair Station Hacks . | . . . . . . . . Recycling Unit Hacks . | . . . . . . . . Scanalyzer 2 | . . 2 . . . . . Retrieve Study 2 | . . 2 . . . . . Garrison Access Hacks 1 | . . . . . 1 . . Seal Access 1 | . . . . . 1 . . Unauthorized Hacks 19 | . . 8 . 1 9 1 . Terminals 17 | . . 8 . . 9 . . Botnet 4 | . . 2 . . 2 . . Operators 2 | . . 1 . . 1 . . Skim 10 | . . 5 . . 5 . . Sabotage 1 | . . . . . 1 . . Fabricators . | . . . . . . . . Repair Stations 1 | . . . . 1 . . . Patch 1 | . . . . 1 . . . Recycling Units 1 | . . . . . . 1 . Tunnel 1 | . . . . . . 1 . Scanalyzers . | . . . . . . . . Garrison Access . | . . . . . . . . Data Cores Recovered 3 | . . . . 1 2 . . Used 1 | . . . . . 1 . . Hacking Detections 20 | . 1 8 . 2 8 1 . Full Trace Events 2 | . . 1 . . 1 . . Feedback Events . | . . . . . . . . Feedback Blocked . | . . . . . . . . Robot Schematics Acquired 1 | . . 1 . . . . . Robots Built . | . . . . . . . . Authchips . | . . . . . . . . Time . | . . . . . . . . Total Robot Build Rating . | . . . . . . . . Part Schematics Acquired 1 | . . 1 . . . . . Parts Built . | . . . . . . . . Authchips . | . . . . . . . . Time . | . . . . . . . . Total Part Build Rating . | . . . . . . . . Part Studies Acquired 2 | . . 2 . . . . . Parts Repaired . | . . . . . . . . Time . | . . . . . . . . Parts Recycled . | . . . . . . . . Recycled Matter . | . . . . . . . . Retrieved Matter . | . . . . . . . . Retrieved Components . | . . . . . . . . Parts Scanalyzed . | . . . . . . . . Part Schematics Acquired . | . . . . . . . . Parts Damaged . | . . . . . . . . Bothacking | -11 -10 -9 -9 -8 -8 -8 -8 ------------ Run | Yrd Mat Mat Min Mat Sto Rec Scr Used RIF Installer . | . . . . . . . . Robots Hacked 2 | . . . . . . . 2 Non-combat . | . . . . . . . . Combat 2 | . . . . . . . 2 Robot Hacks Applied 2 | . . . . . . . 2 parse_system 2 | . . . . . . . 2 Relay Couplers Released 2 | . . . . 2 . . . Machine Destruction 2 | . . . . 2 . . . Fabnet Peak Effective % . | . . . . . . . . Robots Rewired . | . . . . . . . . Allies Hacked . | . . . . . . . . Hacks Repelled . | . . . . . . . . Allies | -11 -10 -9 -9 -8 -8 -8 -8 -------- Run | Yrd Mat Mat Min Mat Sto Rec Scr Total Allies 6 | . . . 1 1 3 . 1 Largest Group 2 | . . . 1 1 2 . 1 Highest-Rated Group 464 | . . . 31 142 62 . 464 Highest-Rated Ally 464 | . . . 31 142 31 . 464 Total Orders . | . . . . . . . . Ally Attacks 120 | . . . . 24 21 . 75 Total Damage 6867 | . . . . 1472 344 . 5051 Kills 50 | . . . . 11 4 . 35 Allies Corrupted . | . . . . . . . . Allies Melted . | . . . . . . . . X0-1V1 Amusement Gains 188 | . 13 24 33 23 72 3 20 Average Entertainment 34 | . 26 17 30 37 53 61 11 Good Acts 24 | . . 3 6 6 8 1 . Bad Acts 13 | . . 2 . 3 8 . . Intel | -11 -10 -9 -9 -8 -8 -8 -8 ------- Run | Yrd Mat Mat Min Mat Sto Rec Scr Active Infowar (turns) 352 | 5 208 . . 53 . . 86 Optics 53 | . . . . 53 . . . Seismic 213 | 5 208 . . . . . . ECM 86 | . . . . . . . 86 Robot Analysis Total 8 | . 1 . . . 1 . 6 Derelict Logs Recovered 1 | . . . 1 . . . . Drone Launches . | . . . . . . . . Drone Recoveries . | . . . . . . . . Exploration | -11 -10 -9 -9 -8 -8 -8 -8 ------------- Run | Yrd Mat Mat Min Mat Sto Rec Scr Turns Passed 9008 | 82 234 1640 1241 1018 1908 139 2746 Spaces Moved 3700 | 46 157 766 486 314 634 58 1239 Core 7 | 7 . . . . . . . Treads 2729 | . . 637 486 124 185 58 1239 Legs 964 | 39 157 129 . 190 449 . . Wheels . | . . . . . . . . Hover . | . . . . . . . . Flight . | . . . . . . . . Fastest Speed 50 | 50 120 120 221 202 192 238 152 Average Speed 209 | 109 120 176 235 222 240 242 214 Slowest Speed 560 | 120 120 332 241 470 560 250 241 Overloaded Moves . | . . . . . . . . Propulsion Burnouts . | . . . . . . . . Robots Hopped . | . . . . . . . . Potential Cave-ins . | . . . . . . . . Cave-ins Triggered . | . . . . . . . . Exploration Rate (%) 49 | 4 29 69 89 36 74 16 81 Regions Visited 7 Branch Regions 4 Pre-discovered Areas 8 | . . 2 . . 5 1 . Known Exits Taken 4 | . . 1 1 1 1 . . Unknown Exits Taken 3 | 1 1 . . . . 1 . Scrap Searched 7 | . . . 1 . . . 6 Spaces Dug 7 | . . . . 1 6 . . Terrain Destroyed 218 | . . 33 16 24 145 . . Melee . | . . . . . . . . Projectile 49 | . . . . 17 32 . . AOE 169 | . . 33 16 7 113 . . Terrain Rammed . | . . . . . . . . Walls Destroyed . | . . . . . . . . Machines Disabled . | . . . . . . . . Actions | -11 -10 -9 -9 -8 -8 -8 -8 --------- Run | Yrd Mat Mat Min Mat Sto Rec Scr Total 4457 | 62 184 947 566 483 847 57 1311 Wait 209 | . 13 25 50 40 69 . 12 Move 3694 | 45 156 766 485 313 633 57 1239 Hop . | . . . . . . . . Pick Up 97 | 4 2 35 7 10 8 . 31 Fast Attach 45 | 7 1 11 2 12 11 . 1 Attach 16 | . . 4 4 4 1 . 3 Detach 6 | . . 2 . 2 . . 2 Swap 36 | . 1 13 4 1 15 . 2 Drop 80 | . 2 29 6 17 17 . 9 Fire 258 | 6 9 58 8 78 89 . 10 Melee 5 | . . . . 3 . . 2 Ram . | . . . . . . . . Kick 5 | . . . . 2 3 . . Crush 6 | . . 4 . 1 1 . . Escape Stasis . | . . . . . . . . Rewire . | . . . . . . . . Trap . | . . . . . . . . Miscellaneous . | . . . . . . . . Route ------- -11/Scrapyard -10/Materials -9/Materials (discovered 5 exits: *Mat x3 / *Min x2) -9/Mines (discovered 2 exits: *Mat x2) -8/Materials (discovered 2 exits: *Fac / *Sto) -8/Storage (discovered 2 exits: *Fac / *Rec) -8/Recycling -8/Scraptown (discovered 1 exit: [*Fac]) History --------- Turn | Location | Event 4 | -11/Scrapyard | Discovered new exit (range 16) 83 | -11/Scrapyard | Entered Materials 162 | -10/Materials | Central database locked down 249 | -10/Materials | Discovered new exit (range 12) 291 | -10/Materials | Made a sacrifice at D.C.S.S. Altar Unit 291 | -10/Materials | Forcibly received Sfc. Transmogifier from X0-1V1 316 | -10/Materials | Build established: Mutant 317 | -10/Materials | Entered another Materials area 317 | -9/Materials | Evolved 2 slots: Propulsion x1, Weapon x1 616 | -9/Materials | Build established: Gunner 681 | -9/Materials | Discovered new exit (range 12) 758 | -9/Materials | Destroyed 7 combat bots 925 | -9/Materials | Discovered new exit (range 11) 934 | -9/Materials | Identified exit to Mines 1327 | -9/Materials | Learned location of Zion (-6) 1375 | -9/Materials | X0-1V1 sent hostile S-10 Pest (x3) 1385 | -9/Materials | Identified exit to Materials 1435 | -9/Materials | Learned Storage stockpile data 1503 | -9/Materials | Learned location of 1 exit from Storage 1504 | -9/Materials | X0-1V1 sent you to a vault 1523 | -9/Materials | Learned location of 1 exit from Storage 1528 | -9/Materials | Found Mobile Assembly Unit 1555 | -9/Materials | Learned Storage security intel 1586 | -9/Materials | Learned Storage terminal intel 1628 | -9/Materials | Learned Storage trap positions 1957 | -9/Materials | Entered Mines 1958 | -9/Mines | Assembled infested the area 1963 | -9/Mines | Assisted by a Guerilla fighting off Assembled 2019 | -9/Mines | Utility slot count permanently improved by X0-1V1 (+1) 2218 | -9/Mines | X0-1V1 put everyone to sleep 2235 | -9/Mines | Attached CPS modules to D-53 Grenadier 2241 | -9/Mines | Core integrity fell below 50% 2259 | -9/Mines | Core integrity restored by X0-1V1 (+60) 2498 | -9/Mines | X0-1V1 activates XOMVISION 2539 | -9/Mines | Build established: Tank 2584 | -9/Mines | Received a Mining Laser from a helpful Derelict 2710 | -9/Mines | Core integrity restored by X0-1V1 (+52) 2736 | -9/Mines | Received a Rocket Launcher from a helpful Derelict 2917 | -9/Mines | Learned location of 1 exit from Materials 3073 | -9/Mines | Found the Drone Emporium 3091 | -9/Mines | Found Prototype Device 3091 | -9/Mines | Identified Sensor Drone Bay 3198 | -9/Mines | Entered Materials 3198 | -8/Materials | Evolved 2 slots: Propulsion x1, Weapon x1 3199 | -8/Materials | Identified exit to Factory 3260 | -8/Materials | X0-1V1 redirected Transport squads to designated parking area 3391 | -8/Materials | Destroyed 8 combat bots 3453 | -8/Materials | Lost 3 parts (1u2w) 3513 | -8/Materials | Garrison activated, responded to threat 3545 | -8/Materials | X0-1V1 sent allied H-71 Marshal (x1) 3626 | -8/Materials | Garrison activated, responded to threat 3659 | -8/Materials | X0-1V1 sent you to a vault 3668 | -8/Materials | Found Prototype Slashing Weapon 3668 | -8/Materials | Identified Scimitar of Distortion 3986 | -8/Materials | Identified exit to Storage 3998 | -8/Materials | First assault squad dispatched 4216 | -8/Materials | Entered Storage 4217 | -8/Storage | Identified exit to Recycling 4218 | -8/Storage | Loaded intel: 11 trap records 4221 | -8/Storage | Loaded intel: 17 terminal locations 4373 | -8/Storage | X0-1V1 upgraded hostiles (x2) 4434 | -8/Storage | Melee accuracy permanently improved by X0-1V1 (+6%; -60 max core) 4513 | -8/Storage | X0-1V1 redirected Transport squads to designated parking area 4685 | -8/Storage | Build established: Gunner 4686 | -8/Storage | Met a pair of Derelict thieves 4735 | -8/Storage | X0-1V1 sent hostile G-34 Mercenary (x3) 4813 | -8/Storage | Destroyed 10 combat bots 4860 | -8/Storage | Garrison activated, responded to threat 4964 | -8/Storage | X0-1V1 added 0b10 threat records associated with you (minor) 5037 | -8/Storage | Learned Factory trap positions 5131 | -8/Storage | Learned Factory security intel 5195 | -8/Storage | Learned 4 Recycling zone layouts 5199 | -8/Storage | Learned location of 2 exits from Factory 5306 | -8/Storage | Learned location of Lower Caves (-6) 5416 | -8/Storage | First assault squad dispatched 5420 | -8/Storage | Garrison activated, responded to threat 5423 | -8/Storage | Core integrity fell below 50% 5432 | -8/Storage | X0-1V1 turns hostiles against one another 5451 | -8/Storage | Destroyed 12 combat bots 5640 | -8/Storage | X0-1V1 activates XOMVISION 5864 | -8/Storage | Build established: Tank 6114 | -8/Storage | Used back door to open Recycling access 6124 | -8/Storage | Entered Recycling 6208 | -8/Recycling | Scanned before Scraplab entrance 6241 | -8/Recycling | Entered Scraplab 6260 | -8/Recycling | Discovered new exit (range 2) 6263 | -8/Recycling | Entered Scraptown 6569 | -8/Scraptown | Visited Fellowship of the Rings 6588 | -8/Scraptown | Visited Spacefarers 6728 | -8/Scraptown | Visited Red Mages 6752 | -8/Scraptown | Visited UFD Registry 6752 | -8/Scraptown | Registered with UFD as "Shortboard" 6797 | -8/Scraptown | Visited Abandonware Association 6824 | -8/Scraptown | Learned abandonware demo "SHUTEYE.EXE" 6824 | -8/Scraptown | Learned abandonware demo "TRNCOAT.EXE" 6883 | -8/Scraptown | Visited A0-MCA Data Center 6897 | -8/Scraptown | Given a C rating by A0-MCA 6904 | -8/Scraptown | Found A0-MCA's Component Scanner 7069 | -8/Scraptown | Build established: Gladiator 7116 | -8/Scraptown | Visited Analyses Database 7166 | -8/Scraptown | Visited Derelict Rescue Squad 7185 | -8/Scraptown | Found DRS Beacon 7226 | -8/Scraptown | Visited Supply Room 7248 | -8/Scraptown | Visited DA-N13 Charitable Foundation 7274 | -8/Scraptown | Found DCF Scrap (28 items) 7327 | -8/Scraptown | Visited Observation Area 7370 | -8/Scraptown | Visited Scrapoid Research Area 7414 | -8/Scraptown | Visited Cartography Club 7442 | -8/Scraptown | Build established: Mutant 7442 | -8/Scraptown | Found Surveybot 17 Chip 8302 | -8/Scraptown | Build established: Gunner 8373 | -8/Scraptown | Discovered new exit (range 13) 8828 | -8/Scraptown | X0-1V1 brought Wyrm Statue to life 8828 | -8/Scraptown | Attacked by Scraptown defenders 8831 | -8/Scraptown | Attached CPS modules to Chaos Wyrm 8854 | -8/Scraptown | Build established: Tank 8938 | -8/Scraptown | Core integrity fell below 20% 9009 | -8/Scraptown | Destroyed by Chaos Wyrm with Ragnarok Missile Launcher Last Messages --------------- 08937_ Penetrated by Siege Slug. 08941_ 42-INM(j) cannibalizes Scrap Suit to repair Mak. Microdissipator Network. 08945_ X0-1V1 is amused. 08947_ Bolt penetrates Chaos Wyrm. 08948_ CO-GK2(x) destroyed. 08950_ Bolt penetrates Chaos Wyrm. 08953_ The unstable cave ceiling collapses. 08977_ Slug penetrates Chaos Wyrm. 08990_ The unstable cave ceiling collapses. 08990_ DU-WBT(E) destroyed. 08992_ V5-CMT(j) destroyed. 08995_ The unstable cave ceiling collapses. 09002_ 8Y-1AE(r) suffers critical hit (Meltdown). 09003_ The unstable cave ceiling collapses. 09004_ G1-T1G(r) follow-up attacks with Ripteeth. 09004_ 9K-E4U(r) destroyed. 09005_ G1-T1G(r) destroyed. 09009_ EW-CAA(x) destroyed. 09009_ X0-1V1 giggles madly! Map ----- +----------------------------------------------------+ | " "#??????? ## ??# | | "" " " ! "#????????? ?# ############# | | """""" " !! "#??????????# ?# #???????????? | | ###### " = "#??????????# # #??????"""""? | | ###### " "#??????????# # #??????""" "? | | """""" """" ""#??????????# #?????? "" | | """" " #### ###??????????#"X" # #??????"" " | | " " #### ###??????????###### #??????? | | " """" ""#???????????????# ! #????????""" | | " "#?????????####### #?????#" "" | | """ " " "" "#???????""""""" # #?????#" """ | | " " "" "#?????#""""""" # #?????#" | | " " " "#?????#"" !%#?????" " | | " " ""#?????#"" =! ![###???????""" | | "" " " """""#??????""" *% " ##??????""" | | " """""""#?????#"X !% = # ###????### | | " " """"""???????#"" [= % ??????? | | "" " ######????????""" # ###### | | " #?????????????"" | | "" " #????""???????"" # =% [! % | | "" " #??? "#??????""""" =% | | #?? "#??????""""" [[! = % | | " #? "#????????## = = =%% = [ | | " #" "#????????# /% !== == ! | | """""" #" "#????????# !%! !% ! | | ###### #"" """##########@ DD% ! | | ?????# DD ! # ### ### | | ###### #???# | | """""" #"" """##"" """### #???# | | " "" #" "##"" "#?# " "#???# | | " "" #"" "##"" "#?# ###" """"" ""#???# | | "" #?" "##"" "#?# #?#" """"" "#???# | | "" #???" "##" "#?# #?#" """"" ""#???# | | #???? "##" "#?# #??? "#???# | | " #?????"?#""""""#?# #????#########????# | | "" #???????#######??# #?????????????????# | | "" #######??#####???# #?????????????????### | | "" """""""#?#"""#???# #???????????????????? | | "" """ " "#?#" "#???# #???????????????????? | | ## ### " """ "#?# #???# #???????????????????? | | ??# " """ "#?# ##### #???????????????????? | | ###### " """ ???# ##????????????##????? | | """""" " """ ???# #???????????? | | " " """ ???# ##???###???### ##??#" | | """ " " """ "??##### ### ##???"""""?#""" "#???? | | """ " " """ "??????# #?###????"" ""?#""" "#???? | | """" """ "####### ######???"" "?#""" "#???? | | """" " " """ "##""""" """""#??#" ""##"" "#?### | | """" " " "##""" " " "#??#"" ""##"" "#?#"" | | " """""""##" !!= "#??#"" ""##"! "#?#"" | +----------------------------------------------------+ Best States ------------- Heat Dissipation 50 Energy Generation 19 Energy Capacity 1800 Matter Stores 700 Matter Capacity 700 Sight Range 22 Terrain Scan Density 10 ECM Strength 2 Armor Coverage 225 Resistance: TH 10 Resistance: EM 15 Propulsion Shielding 90 Weapon Shielding 90 Evasion (%) 55 Melee Accuracy 8 Recoil Reduction 4 Kinecelleration 30 Authchip Count 4 Item Schematics ----------------- Hcp. Storage Unit | -9/Materials | Hacked Robot Schematics ------------------ M-13 Machinist | -9/Materials | Hacked Fabricated ------------ Nothing Repaired ---------- Nothing Studied --------- Autogun | -9/Materials | Hacked Imp. Treads | -9/Materials | Hacked Alien Tech Used ----------------- None Achievements -------------- None Challenges ------------ None Game ------ Seed SuperdenseStealthWyrmscale Manual? 0 Play Time 01:08:03 Cumulative 1778.4 hours Start 2026.09.06 @ 18:57:40 End 2026.09.06 @ 20:06:39 Sessions 1 Manual Loads 0 Difficulty Rogue Special Mode None Game No. 537 Rogue 529 Adventurer 4 Explorer 4 Win Type - Total 71 Types 31/10/5/4/2/5/7/2/3/2 Lore% 97 Gallery% 96 Achievement% 92 Wizard Run 0 Options --------- Layout 0 ASCII 0 Keyboard 0 Movement Numpad Keybinds 0 Fullscreen 2 Font 18/SmallcapsGlow Map View 76x50 Zoom Use 4% Tactical HUD 1 Map Filters NONE Filters NONE Steam 1 RUN: d1ff4500-9700-4a9d-8fe9-ad207f6bee8a